[Event "44th Chess Olympiad Open 2022"]
[Site "Chennai"]
[Date "2022.08.05"]
[Round "7.26"]
[White "Kjartansson, Gudmundur"]
[Black "Bastidas Rodriguez, Emilio"]
[Result "1-0"]
[ECO "B81"]
[WhiteElo "2448"]
[BlackElo "2351"]
[Annotator "TA"]
[PlyCount "109"]
[EventDate "2022.07.29"]
[EventType "team-tourn"]
[EventCountry "IND"]
[SourceTitle "playchess.com"]
[Source "ChessBase"]
[SourceQuality "1"]
[WhiteTeam "Iceland"]
[BlackTeam "Ecuador"]
[WhiteTeamCountry "ISL"]
[BlackTeamCountry "ECU"]
[TimeControl "40/5400+30:1800+30"]

{[%evp 13,109,16,21,14,32,25,22,16,20,17,27,11,20,22,26,38,51,50,43,14,65,0,0,2,4,6,5,0,0,0,0,0,0,-8,0,0,0,0,3,0,0,0,0,0,0,0,84,88,86,112,95,112,106,108,197,180,382,331,452,441,680,572,1238,1442,1252,1466,1398,1245,1205,937,1010,462,29973,29975,29973,29976,29972,29972,29978,29979,29979,29980,29980,29981,29983,29984,29985,29986,29991,29992,29992,29993,29993,29994,29996,29996,29997,29997]} 1. e4 {[%emt 0:00:03]} c5 {[%emt 0:00:50]} 2. Nf3 {[%emt 0:00:06]} d6 {[%emt 0:00:12]} 3. d4 {[%emt 0:00:13]} cxd4 {[%emt 0:00:07]} 4. Nxd4 {[%emt 0:00:03]} Nf6 {[%emt 0:00:12]} 5. Nc3 {[%emt 0:00:04]} a6 {[%emt 0:00:16]} 6. h3 {[%emt 0:00:39]} e6 {[%emt 0:01:30]} 7. g4 {[%emt 0:00:11]} b5 {[%emt 0:00:09]} 8. g5 {[%emt 0:03:22] B81: Sicilian Scheveningen: Keres Attack.} b4 {[%emt 0:04:46]} 9. gxf6 {[%emt 0:02:32]} bxc3 {[%emt 0:05:17]} 10. fxg7 {[%emt 0:00:31] The position is equal.} Bxg7 {[%emt 0:00:02]} 11. bxc3 {[%emt 0:00:13]} Qc7 {[%emt 0:04:53]} 12. Bd2 {[%emt 0:05:29]} Nd7 {[%emt 0:10:27][%cal Bb8d7,Bd7c5,Bc5a4,Ba4c3][%mdl 32]} 13. Rg1 {[%emt 0:03:01]} Bf6 {[%emt 0:08:30]} 14. Qh5 {[%emt 0:13:05] [#]} Qc5 $146 {[%emt 0:02:20]} ({Predecessor:} 14... Ke7 15. Bd3 Bb7 16. Ke2 d5 17. exd5 {½-½ (17) Shirov,A (2651)-Korobov,A (2664) Karlsruhe 2018}) 15. Qxc5 {[%emt 0:23:04]} Nxc5 {[%emt 0:00:38]} 16. f3 {[%emt 0:00:29]} Bb7 {[%emt 0:03:19]} (16... Bd7 $11) 17. Nb3 {[%emt 0:01:33]} ({White should try} 17. Rb1 $14) 17... Na4 $1 $11 {[%emt 0:14:30]} 18. Na5 {[%emt 0:00:47][%cal Bb3a5,Ba5c4,Bc4d6][%mdl 32]} Bc8 {[%emt 0:03:08]} 19. Nc4 {[%emt 0:07:00]} Nxc3 {[%emt 0:00:00] [#] ( -> ...Bh4+)} 20. Bg5 {[%emt 0:03:39] Prevents Bh4+.} Nxe4 {[%emt 0:01:40]} 21. Nxd6+ {[%emt 0:01:32]} Kf8 {[%emt 0:09:20]} 22. Bxf6 {[%emt 0:07:45]} Nxf6 {[%emt 0:00:19]} 23. O-O-O {[%emt 0:03:33]} Bd7 {[%emt 0:05:09]} (23... Ke7 {with more complications.} 24. Rg7 Nd5 25. c4 Kxd6 26. Rxf7 Rb8) 24. Ne4 {[%emt 0:00:26]} Nd5 {[%emt 0:00:27]} 25. c4 {[%emt 0:02:33]} Rc8 {[%emt 0:02:54]} 26. Kb2 {[%emt 0:00:24]} Nb6 {[%emt 0:02:44]} 27. c5 {[%emt 0:07:58]} Na4+ {[%emt 0:02:22]} 28. Ka3 {[%emt 0:03:18]} Bc6 {[%emt 0:00:36]} 29. Rd6 $36 {[%emt 0:07:01][%mdl 2048] White has some pressure.} ({But not} 29. Bxa6 Ra8 30. Rd6 Rxa6 $17) 29... Bxe4 {[%emt 0:06:44]} (29... Ke7 $1 $11 {remains equal.}) 30. Kxa4 $16 {[%emt 0:00:18] Black is now going downhill.} Bxf3 {[%emt 0:04:01]} 31. Bxa6 {[%emt 0:00:02]} Ra8 {[%emt 0:00:33]} 32. Kb4 {[%emt 0:00:12] Black must now prevent Bb5. White is more active.} Ke7 {[%emt 0:00:45]} 33. a4 {[%emt 0:00:25]} Rhb8+ {[%emt 0:01:22] [#]} (33... Rad8 $16) 34. Bb5 $1 $18 {[%emt 0:00:12]} Be2 $2 {[%emt 0:00:18]} (34... Rd8 {might work better.}) 35. Rd7+ {[%emt 0:01:32]} Kf6 {[%emt 0:00:06][%cal Oa8a4] Strongly threatening ...Rxa4+!} 36. Rb1 {[%emt 0:04:34]} Bxb5 {[%emt 0:00:29]} (36... Ra6 $142 37. Rb2 (37. Kc3 Rxa4 38. Bxa4 Rxb1 $11) 37... Bh5) 37. axb5 {[%emt 0:00:02]} Rxb5+ {[%emt 0:00:23]} 38. Kxb5 {[%emt 0:00:01]} Rb8+ {[%emt 0:00:01]} 39. Ka6 {[%emt 0:00:17]} Rxb1 {[%emt 0:00:10][%mdl 4096] Endgame KR-KR} 40. c6 {[%emt 0:00:13]} Rc1 {[%emt 0:04:20]} 41. c7 {[%emt 0:32:02] Kb7 is the strong threat.} e5 {[%emt 0:33:45]} 42. Kb7 {[%emt 0:00:00]} Ke6 {[%emt 0:00:00]} (42... Rb1+ $18 43. Kc8 Kg5) 43. c8=Q {[%emt 0:00:00] White mates.} Rxc8 {[%emt 0:00:00]} 44. Kxc8 {[%emt 0:00:00] KR-K3P} e4 {[%emt 0:00:00]} 45. Kc7 {[%emt 0:00:00]} h5 {[%emt 0:00:00]} 46. Kc6 {[%emt 0:00:00]} f5 {[%emt 0:00:00]} 47. Rd8 {[%emt 0:00:00]} Ke5 {[%emt 0:00:00]} 48. Kc5 {[%emt 0:00:00]} h4 {[%emt 0:00:00]} 49. Rf8 {[%emt 0:00:00]} Kf4 {[%emt 0:00:00]} 50. Kd4 {[%emt 0:00:00]} Kg3 {[%emt 0:00:00]} 51. Rxf5 {[%emt 0:00:00]} Kxh3 {[%emt 0:00:00]} 52. Rg5 {[%emt 0:00:00]} Kh2 {[%emt 0:00:00]} 53. Kxe4 {[%emt 0:00:00]} h3 {[%emt 0:00:00]} 54. Kf3 {[%emt 0:00:00]} Kh1 {[%emt 0:00:00]} 55. Ra5 {[%emt 0:00:00] Weighted Error Value: White=0.06 (flawless) /Black=0.38} 1-0

[Event "44th Chess Olympiad Open 2022"]
[Site "Chennai"]
[Date "2022.08.05"]
[Round "7.26"]
[White "Mieles Palau, Daniel"]
[Black "Stefansson, Hannes"]
[Result "1/2-1/2"]
[ECO "A28"]
[WhiteElo "2364"]
[BlackElo "2541"]
[Annotator "TA"]
[PlyCount "96"]
[EventDate "2022.07.29"]
[EventType "team-tourn"]
[EventCountry "IND"]
[SourceTitle "playchess.com"]
[Source "ChessBase"]
[SourceQuality "1"]
[WhiteTeam "Ecuador"]
[BlackTeam "Iceland"]
[WhiteTeamCountry "ECU"]
[BlackTeamCountry "ISL"]
[TimeControl "40/5400+30:1800+30"]

{[%evp 9,96,0,8,8,16,16,15,10,10,10,7,0,0,0,6,-7,-10,-12,35,4,4,4,0,0,0,0,0,0,14,0,6,7,6,-40,0,0,0,0,0,0,0,-17,0,0,0,0,8,-10,12,0,58,53,134,148,138,141,138,0,0,0,0,0,0,0,16,0,7,7,7,0,0,0,0,0,0,0,0,0,0,0,0,0,0,-14,-14,-14,-14,-14,-14]} 1. c4 {[%emt 0:00:03]} e5 {[%emt 0:00:31]} 2. Nc3 {[%emt 0:00:04]} Nf6 {[%emt 0:00:35]} 3. Nf3 {[%emt 0:00:05]} Nc6 {[%emt 0:00:28]} 4. e4 {[%emt 0:00:03]} Bb4 {[%emt 0:02:10]} 5. d3 {[%emt 0:00:31]} d6 {[%emt 0:01:05]} 6. a3 {[%emt 0:01:11] A28: English Opening: Four Knights Variation.} Bc5 {[%emt 0:01:01]} 7. b4 {[%emt 0:01:59]} Bb6 {[%emt 0:00:48]} 8. Be2 {[%emt 0:01:59]} Nd4 {[%emt 0:06:05]} 9. Nxd4 {[%emt 0:22:10]} Bxd4 {[%emt 0:00:31] [#]} 10. Bb2 $146 {[%emt 0:00:08]} ({Predecessor:} 10. Qc2) 10... c6 {[%emt 0:05:45]} 11. O-O {[%emt 0:07:17]} O-O {[%emt 0:08:48]} 12. Na4 {[%emt 0:03:58]} Bxb2 {[%emt 0:04:32]} 13. Nxb2 {[%emt 0:01:29]} d5 {[%emt 0:04:17]} (13... Re8 $11) 14. cxd5 {[%emt 0:04:50]} cxd5 {[%emt 0:00:07]} 15. d4 {[%emt 0:00:07]} Qe7 {[%emt 0:20:53]} 16. exd5 {[%emt 0:21:39]} e4 {[%emt 0:00:22]} 17. d6 {[%emt 0:03:07]} Qxd6 {[%emt 0:00:20]} 18. Nc4 {[%emt 0:00:02]} Qe7 {[%emt 0:03:50]} 19. d5 {[%emt 0:08:01]} Rd8 {[%emt 0:00:32]} 20. Ne3 {[%emt 0:00:23]} Qe5 {[%emt 0:00:45][%cal Rf6d5] Inhibits Qd4.} 21. Qb3 {[%emt 0:09:42]} (21. Ra2 $11) 21... Bd7 {[%emt 0:08:41]} 22. Rad1 {[%emt 0:06:42]} Rac8 {[%emt 0:07:09]} 23. Nc4 {[%emt 0:00:00]} Qg5 {[%emt 0:02:50]} 24. Na5 {[%emt 0:00:00]} Rb8 {[%emt 0:01:33]} 25. Kh1 {[%emt 0:00:00]} Be8 {[%emt 0:02:58][%cal Rf6d5]} 26. f4 $1 {[%emt 0:00:00]} Qf5 {[%emt 0:01:48][%cal Rf6d5]} 27. d6 {[%emt 0:00:00]} Bd7 {[%emt 0:02:53]} 28. Qe3 {[%emt 0:00:00]} Ba4 {[%emt 0:09:02] [#] Threatens to win with ...Nd5.} 29. Rd2 {[%emt 0:01:49]} b6 {[%emt 0:00:07]} ({Black should play} 29... Bb5 $11) 30. Nc4 $14 {[%emt 0:00:06]} Bb5 {[%emt 0:01:11]} (30... Ne8 $1 $14) 31. Ne5 $16 {[%emt 0:00:16]} Bxe2 {[%emt 0:00:16]} 32. Qxe2 {[%emt 0:00:05]} Rbc8 {[%emt 0:00:26]} 33. Qe3 {[%emt 0:01:32] White is much more active.} (33. g4 $16 Qe6 34. g5) 33... Nd7 $1 $36 {[%emt 0:00:36][%mdl 2048] Black is pushing. The position is equal.} 34. Nxd7 {[%emt 0:00:55]} Rxd7 {[%emt 0:00:08]} 35. Rfd1 {[%emt 0:00:36]} Qe6 {[%emt 0:00:59]} 36. Rd5 {[%emt 0:04:22]} f5 {[%emt 0:00:30]} 37. h3 {[%emt 0:01:46]} Rcd8 {[%emt 0:00:12][%cal Rd7d6]} 38. Re5 {[%emt 0:01:22]} Qf7 {[%emt 0:00:10]} 39. Qc3 {[%emt 0:00:21]} h6 {[%emt 0:01:45]} (39... Rxd6 $2 40. Rxd6 Rxd6 41. Qc8+ Qf8 42. Re8 $18) 40. Qc6 {[%emt 0:01:13]} Kh7 {[%emt 0:01:45]} 41. Kh2 {[%emt 0:18:24]} Qf6 {[%emt 0:04:42][%cal Rd7d6]} 42. Red5 {[%emt 0:00:20]} Kg6 {[%emt 0:06:22]} 43. R5d4 {[%emt 0:04:08]} Qh4 {[%emt 0:05:25]} 44. g3 {[%emt 0:05:08]} Qf6 {[%emt 0:01:30]} 45. g4 {[%emt 0:00:07]} e3 {[%emt 0:04:58] [#] aiming for ...e2.} 46. gxf5+ {[%emt 0:01:00]} Qxf5 {[%emt 0:00:22]} 47. Qe4 {[%emt 0:01:50]} Qxe4 {[%emt 0:03:17]} 48. Rxe4 {[%emt 0:00:02]} Rxd6 {[%emt 0:00:59] Weighted Error Value: White=0.07 (flawless) /Black=0.09 (flawless)} 1/2-1/2

[Event "44th Chess Olympiad Open 2022"]
[Site "Chennai"]
[Date "2022.08.05"]
[Round "7.26"]
[White "Noboa Silva, Kevin"]
[Black "Gretarsson, Helgi Ass"]
[Result "1/2-1/2"]
[ECO "D35"]
[WhiteElo "2304"]
[BlackElo "2472"]
[Annotator "TA"]
[PlyCount "112"]
[EventDate "2022.07.29"]
[EventType "team-tourn"]
[EventCountry "IND"]
[SourceTitle "playchess.com"]
[Source "ChessBase"]
[SourceQuality "1"]
[WhiteTeam "Ecuador"]
[BlackTeam "Iceland"]
[WhiteTeamCountry "ECU"]
[BlackTeamCountry "ISL"]
[TimeControl "40/5400+30:1800+30"]

{[%evp 13,112,17,15,15,13,20,20,21,21,17,25,12,18,8,22,5,37,9,14,0,0,0,0,-15,13,13,13,5,11,0,19,7,8,7,6,6,12,10,17,0,12,5,38,33,50,2,8,6,27,20,24,27,27,22,32,22,48,21,25,1,3,8,8,8,8,8,8,0,0,0,0,0,-8,-7,0,-8,0,0,0,-20,0,0,0,0,0,0,0,0,0,0,0,-24,0,0,0,-7,0,0,0,0,0]} 1. d4 {[%emt 0:00:06]} d5 {[%emt 0:00:12]} 2. c4 {[%emt 0:00:14]} e6 {[%emt 0:00:06]} 3. Nc3 {[%emt 0:00:18]} Nf6 {[%emt 0:00:21]} 4. cxd5 {[%emt 0:00:36]} exd5 {[%emt 0:00:07]} 5. Bg5 {[%emt 0:00:17]} c6 {[%emt 0:00:08]} 6. e3 {[%emt 0:00:52]} Bd6 {[%emt 0:00:13] 6...Bd6 is setting a new trend.} 7. Bd3 {[%emt 0:00:56]} O-O {[%emt 0:00:10]} 8. Qc2 {[%emt 0:03:31][%cal Od3h7] D35: Queen's Gambit Declined: Exchange Variation.} h6 {[%emt 0:00:08]} 9. Bh4 {[%emt 0:00:45]} Re8 {[%emt 0:00:11]} 10. Nge2 {[%emt 0:06:31]} a5 {[%emt 0:21:04]} 11. h3 {[%emt 0:03:37]} Na6 {[%emt 0:00:15][%cal Bb8a6,Ba6c7,Bc7e6,Be6g5,Bg5e4][%mdl 32]} 12. a3 {[%emt 0:00:25] Prevents Nb4.} Nc7 {[%emt 0:00:04]} 13. O-O {[%emt 0:02:06]} Bd7 {[%emt 0:25:40] [#]} 14. Rac1 $146 {[%emt 0:13:48]} ({Predecessor:} 14. Rae1 Be7 15. Bg3 Rc8 16. Be5 Be6 17. Nf4 Bd6 18. Bxd6 Qxd6 19. Na4 Rb8 20. Rc1 {½-½ (38) Lenderman,A (2607)-Xiong,J (2700) Saint Louis 2021}) 14... Rb8 {[%emt 0:12:12]} 15. Na4 {[%emt 0:11:16]} Ne6 {[%emt 0:08:22]} 16. Bh7+ {[%emt 0:10:48]} Kh8 {[%emt 0:00:13]} 17. Bf5 {[%emt 0:00:05]} Ng5 {[%emt 0:03:20]} 18. Nc5 {[%emt 0:04:53]} Bxc5 {[%emt 0:02:36]} 19. dxc5 {[%emt 0:04:18]} Bxf5 {[%emt 0:00:07]} 20. Qxf5 {[%emt 0:00:08]} Nge4 {[%emt 0:00:08]} 21. Nd4 {[%emt 0:03:32]} g6 {[%emt 0:05:13]} 22. Bxf6+ {[%emt 0:00:56]} Qxf6 {[%emt 0:06:11]} 23. Qxf6+ {[%emt 0:00:22]} Nxf6 {[%emt 0:00:01]} 24. b4 {[%emt 0:00:28]} axb4 {[%emt 0:00:03]} 25. axb4 {[%emt 0:00:04]} Ra8 {[%emt 0:00:54]} 26. Ra1 {[%emt 0:05:06]} Nd7 {[%emt 0:00:00]} 27. Rfd1 {[%emt 0:05:19]} Ne5 {[%emt 0:01:02]} 28. b5 {[%emt 0:03:44]} Kg7 {[%emt 0:09:00]} 29. b6 {[%emt 0:08:56]} (29. Rxa8 $14 {feels stronger.} Rxa8 30. f4) 29... Nd7 {[%emt 0:00:10]} 30. Nb3 {[%emt 0:00:06]} Kf8 {[%emt 0:00:38]} 31. Kf1 {[%emt 0:02:34]} Ke7 {[%emt 0:01:50]} 32. Ke2 {[%emt 0:00:21]} Nf6 {[%emt 0:02:00]} 33. f3 {[%emt 0:03:52]} h5 {[%emt 0:00:54]} 34. Kd3 {[%emt 0:01:39]} Kd7 {[%emt 0:00:27]} 35. Kd4 {[%emt 0:00:49]} h4 {[%emt 0:01:16]} 36. Rxa8 {[%emt 0:00:43]} Rxa8 {[%emt 0:00:02]} 37. Ra1 {[%emt 0:00:01]} Rxa1 {[%emt 0:00:59]} 38. Nxa1 $11 {[%emt 0:00:01][%mdl 4096] Endgame Nb3 is the strong threat. KN-KN} Nh5 $1 {[%emt 0:00:10]} 39. Nb3 {[%emt 0:00:28] White wants to play Na5.} f6 {[%emt 0:02:23]} 40. Na5 {[%emt 0:02:28]} Kc8 {[%emt 0:00:52]} 41. Nb3 {[%emt 0:16:42]} Kd7 {[%emt 0:00:13]} 42. Nd2 {[%emt 0:05:51]} Ng7 {[%emt 0:01:14]} 43. Kc3 {[%emt 0:00:09]} Ne6 {[%emt 0:19:43]} 44. Kb4 {[%emt 0:00:21]} Kc8 {[%emt 0:00:10]} 45. Nf1 {[%emt 0:06:53]} Kd7 {[%emt 0:01:48]} 46. Nd2 {[%emt 0:01:22]} Kc8 {[%emt 0:00:11]} 47. Nb3 {[%emt 0:00:06]} Kd7 {[%emt 0:00:23]} 48. Nc1 {[%emt 0:00:08]} d4 {[%emt 0:05:16]} 49. exd4 {[%emt 0:00:16] [#] Hoping for Ne2.} Nxd4 {[%emt 0:00:19]} 50. Nd3 {[%emt 0:01:33]} Nc2+ {[%emt 0:00:55]} 51. Kc3 {[%emt 0:00:36]} Ne3 {[%emt 0:00:10]} 52. Ne1 {[%emt 0:01:32]} Ke6 {[%emt 0:00:22] [#] aiming for ...Kd5.} 53. Kd4 {[%emt 0:00:14] The position is equal.} Nf5+ {[%emt 0:00:05]} 54. Kc4 {[%emt 0:00:30]} Ne3+ {[%emt 0:00:28]} 55. Kd4 {[%emt 0:00:25]} Nf5+ {[%emt 0:00:06]} 56. Kc4 {[%emt 0:01:33]} Ne3+ {[%emt 0:03:24] Weighted Error Value: White=0.05 (flawless) /Black=0.06 (flawless)} 1/2-1/2

[Event "44th Chess Olympiad Open 2022"]
[Site "Chennai"]
[Date "2022.08.05"]
[Round "7.27"]
[White "Hansen, Eric"]
[Black "Greet, Andrew N"]
[Result "1-0"]
[ECO "E15"]
[WhiteElo "2606"]
[BlackElo "2392"]
[Annotator "TA"]
[PlyCount "61"]
[EventDate "2022.07.29"]
[EventType "team-tourn"]
[EventCountry "IND"]
[SourceTitle "playchess.com"]
[Source "ChessBase"]
[SourceQuality "1"]
[WhiteTeam "Canada"]
[BlackTeam "Scotland"]
[WhiteTeamCountry "CAN"]
[BlackTeamCountry "SCO"]
[TimeControl "40/5400+30:1800+30"]

{[%evp 9,61,2,34,25,41,24,23,0,12,10,19,12,10,7,18,29,18,15,16,31,45,0,20,0,45,59,73,79,130,137,225,214,227,227,373,272,373,368,372,361,522,539,536,517,616,622,606,617,605,589,747,747,691,666]} 1. d4 {[%emt 0:00:37]} Nf6 {[%emt 0:00:16]} 2. c4 {[%emt 0:00:48]} e6 {[%emt 0:01:25]} 3. Nf3 {[%emt 0:04:30]} b6 {[%emt 0:00:51]} 4. g3 {[%emt 0:02:28]} Ba6 {[%emt 0:00:33]} 5. Qc2 {[%emt 0:04:40]} Bb4+ {[%emt 0:01:09]} 6. Bd2 {[%emt 0:02:25] E15: Queen's Indian: 4 g3 sidelines, 4 g3 Ba6 and 4 g3 Bb7 early deviations.} Be7 {[%emt 0:00:20]} 7. Bg2 {[%emt 0:01:34]} c6 {[%emt 0:09:42]} 8. O-O {[%emt 0:05:01] White has an edge.} O-O {[%emt 0:02:36]} 9. Rc1 $5 {[%emt 0:09:25][%mdl 4] Exploring less charted territory.} d5 {[%emt 0:03:32]} 10. cxd5 {[%emt 0:02:31]} cxd5 {[%emt 0:00:07]} 11. Bf4 {[%emt 0:20:24]} Bd6 {[%emt 0:20:25]} 12. Ne5 {[%emt 0:04:57] [#]} Nh5 $146 {[%emt 0:09:10]} ({Predecessor:} 12... Bb7 13. Nc3 a6 14. Na4 Bxe5 15. Bxe5 Nc6 16. Bxf6 gxf6 17. e3 Rb8 {0-1 (76) Saydaliev,S (2349)-Ladva,O (2522) Moscow 2018}) 13. Be3 {[%emt 0:04:17]} f6 {[%emt 0:05:51]} 14. Nd3 {[%emt 0:00:00]} f5 {[%emt 0:06:48]} 15. Nc3 {[%emt 0:00:00][%cal Oc3d5] [#] Threatens to win with Nxd5!} Nd7 {[%emt 0:07:41]} 16. Bf3 {[%emt 0:06:47]} Nhf6 {[%emt 0:00:00]} (16... f4 $5 {[%cal Rf4e3]}) 17. Nf4 $36 {[%emt 0:12:27][%mdl 2048] White has some pressure.} Bxf4 {[%emt 0:12:11]} 18. Bxf4 {[%emt 0:00:00] Hoping for Qa4.} b5 {[%emt 0:02:29] Against Qa4} ({Black should play} 18... Rf7) 19. a4 $16 {[%emt 0:02:28] White is more active.} bxa4 {[%emt 0:04:04]} (19... Qb6 $16) 20. Qxa4 $18 {[%emt 0:00:00]} Bb7 {[%emt 0:00:13] [#]} 21. Nb5 $1 {[%emt 0:00:00]} Nb6 {[%emt 0:00:29]} (21... Ne8 $142 22. Nxa7 Rf7) 22. Qb4 {[%emt 0:00:00]} a5 {[%emt 0:03:37]} 23. Rxa5 {[%emt 0:00:00]} Rxa5 {[%emt 0:01:10]} 24. Qxa5 {[%emt 0:00:49]} Na8 {[%emt 0:01:37]} (24... Nc8 {was called for.} 25. b4 Qxa5 26. bxa5 Ne8) 25. Qxd8 {[%emt 0:00:00] White is clearly winning.} Rxd8 {[%emt 0:00:05]} 26. Nd6 {[%emt 0:00:00] Prevents Rc8.} Ba6 {[%emt 0:00:51]} 27. Rc6 {[%emt 0:00:00]} Bc4 {[%emt 0:00:56]} 28. Nxc4 {[%emt 0:00:00]} dxc4 {[%emt 0:00:05]} 29. Rxe6 {[%emt 0:00:00]} Kf7 {[%emt 0:03:16]} 30. Ra6 {[%emt 0:00:00]} Ne4 {[%emt 0:00:18]} 31. g4 {[%emt 0:00:00] Weighted Error Value: White=0.09 (flawless) /Black=0.39} 1-0

[Event "44th Chess Olympiad Open 2022"]
[Site "Chennai"]
[Date "2022.08.05"]
[Round "7.27"]
[White "Noritsyn, Nikolay"]
[Black "Olson, Hamish"]
[Result "0-1"]
[ECO "C90"]
[WhiteElo "2482"]
[BlackElo "2343"]
[Annotator "TA"]
[PlyCount "80"]
[EventDate "2022.07.29"]
[EventType "team-tourn"]
[EventCountry "IND"]
[SourceTitle "playchess.com"]
[Source "ChessBase"]
[SourceQuality "1"]
[WhiteTeam "Canada"]
[BlackTeam "Scotland"]
[WhiteTeamCountry "CAN"]
[BlackTeamCountry "SCO"]
[TimeControl "40/5400+30:1800+30"]

{[%evp 19,80,8,22,0,5,7,0,0,14,4,13,12,31,31,47,23,44,48,47,39,47,44,62,9,25,0,0,0,0,-19,91,90,123,0,0,0,0,0,-6,-66,-11,-25,0,-12,43,-85,-86,-83,-93,-91,-83,-215,-112,-294,-294,-265,-253,-574,-556,-585,-531,-930,-910]} 1. e4 {[%emt 0:00:06]} e5 {[%emt 0:00:08]} 2. Nf3 {[%emt 0:00:10]} Nc6 {[%emt 0:00:07]} 3. Bb5 {[%emt 0:00:08]} a6 {[%emt 0:00:16]} 4. Ba4 {[%emt 0:00:10]} Nf6 {[%emt 0:00:15]} 5. O-O {[%emt 0:00:12]} Be7 {[%emt 0:00:09]} 6. Re1 {[%emt 0:00:11]} b5 {[%emt 0:00:15]} 7. Bb3 {[%emt 0:00:06]} d6 {[%emt 0:00:23]} 8. c3 {[%emt 0:00:21]} O-O {[%emt 0:00:14]} 9. d3 {[%emt 0:04:18]} Na5 {[%emt 0:01:23]} 10. Bc2 {[%emt 0:00:12]} c5 {[%emt 0:00:29]} 11. Bg5 {[%emt 0:00:33] C90: Closed Ruy Lopez with 7...d6: Early deviations.} Nc6 {[%emt 0:03:02]} 12. Nbd2 {[%emt 0:00:33][%cal Bb1d2,Bd2f1,Bf1e3][%mdl 32]} Be6 {[%emt 0:00:44]} 13. Nf1 {[%emt 0:09:07] The position is equal.} Nd7 {[%emt 0:03:08]} 14. Bxe7 {[%emt 0:07:28]} Qxe7 {[%emt 0:02:21]} 15. Ne3 {[%emt 0:00:13] [#]} Nf6 $146 {[%emt 0:03:38][%cal Bd7f6,Bf6h5,Bh5f4,Bf4h3][%mdl 32]} ({Predecessor:} 15... Qf6 16. a4 Rfb8 17. Bb3 Nb6 18. Bxe6 fxe6 19. axb5 axb5 20. Qb3 b4 21. Nc4 Nxc4 22. Rxa8 Rxa8 23. Qxc4 {1-0 (38) Durarbayli,V (2543)-Beliavsky,A (2630) Plovdiv 2012}) 16. d4 {[%emt 0:02:30]} cxd4 {[%emt 0:02:37]} 17. cxd4 {[%emt 0:00:08]} Nxd4 {[%emt 0:03:19]} 18. Nxd4 {[%emt 0:00:16]} exd4 {[%emt 0:00:09]} 19. Qxd4 {[%emt 0:00:05]} Rfd8 {[%emt 0:10:31]} 20. h3 {[%emt 0:09:11]} Nh5 {[%emt 0:12:31]} 21. Rad1 {[%emt 0:28:38]} (21. Nf5 $1 $14 Qa7 22. Qxa7 Rxa7 23. Nd4) 21... Qg5 {[%emt 0:00:00]} 22. Nf5 {[%emt 0:06:30]} Nf4 $1 {[%emt 0:12:43][%csl Gf4][%cal Rg5g2]} 23. g3 {[%emt 0:00:00]} Nxh3+ {[%emt 0:02:44]} 24. Kh2 {[%emt 0:00:45]} Bxf5 {[%emt 0:03:35]} (24... Rac8 $11 25. Bb3 d5 $1) 25. exf5 $16 {[%emt 0:00:11][%cal Be4f5,Bf5f6,Bf6g7][%mdl 32]} Qh5 {[%emt 0:02:02]} (25... Qh6 $2 26. Kg2 $18) 26. Kg2 {[%emt 0:02:12]} ({White must play} 26. g4 $16 Qh4 27. Kg2) 26... Ng5 $11 {[%emt 0:01:31]} 27. Re3 {[%emt 0:05:38] Rh1 is the strong threat.} (27. Qh4 Qf3+ 28. Kg1 h6 $17) 27... Qh3+ {[%emt 0:01:45]} 28. Kg1 Rac8 {[%emt 0:06:42]} 29. Bd3 {[%emt 0:07:38]} (29. Qd3 $1 $11 Qg4 30. Qe2) 29... h5 {[%emt 0:01:44]} (29... d5 $15) 30. f6 {[%emt 0:07:06]} Re8 {[%emt 0:10:49]} 31. fxg7 {[%emt 0:01:43]} h4 {[%emt 0:02:49]} ({Better is} 31... Re5 $11) 32. Be2 {[%emt 0:04:03]} (32. Bf1 $14 Qf5 33. Qxh4 Kxg7 34. Qd4+ (34. Rxd6 $2 Rxe3 35. Qh6+ Kg8 $19) 34... Kg8 35. Bg2) 32... Rxe3 $40 {[%emt 0:04:22][%mdl 128] Black is out for blood. The board is on fire.} 33. Qxe3 {[%emt 0:00:04] [#]} hxg3 $1 {[%emt 0:00:50]} 34. fxg3 {[%emt 0:00:04]} Qh6 {[%emt 0:01:18] ( -> ...Nh3+)} ({Much weaker is} 34... Rc2 $6 35. Rxd6 Rc1+ 36. Rd1 (36. Qxc1 Qxg3+ 37. Kf1 Ne4 $17) 36... Rxd1+ 37. Bxd1 $11) 35. Qd2 {[%emt 0:02:10] [#]} (35. Qe7 $17) 35... Qxg7 {[%emt 0:01:33]} (35... Re8 $1 $19 {[%cal Re8e3]} 36. Bg4 {[#]} Re3 $3 {[%mdl 512]}) 36. Kg2 $2 {[%emt 0:03:13]} (36. Qe3 $17) 36... Qe5 $19 {[%emt 0:00:50] And now ...Re8 would win.} 37. Qd3 {[%emt 0:01:59]} Ne4 {[%emt 0:03:17][%cal Oc8c2] Against Rd2. aiming for ...Rc2!} 38. Re1 $2 {[%emt 0:00:57] [#]} (38. Rf1 {was the crucial defense.}) 38... Rc2 $3 {[%emt 0:00:56][%mdl 512] Black is clearly winning.} 39. Qe3 {[%emt 0:00:39]} (39. Qf3 d5) 39... Rxb2 {[%emt 0:00:53]} 40. a3 {[%emt 0:00:24]} Nc3 {[%emt 0:01:11] Weighted Error Value: White=0.65/Black=0.24 (precise)} 0-1